fUST/lending_fUST_20250709
["ID","MTS","AMOUNT","RATE_DAILY","PERIOD"]
[370477836,1752037835948,-771.31,0.00019178,2]
[370477837,1752037835957,-501.84576524,0.00019178,2]
[370477838,1752037835966,-289.79,0.00019178,2]
[370477839,1752037835976,-460.0,0.00019178,2]
[370477840,1752037835985,-486.82,0.00019178,2]
[370477841,1752037835994,-460.0,0.00019178,2]
[370477842,1752037836004,-460.0,0.00019178,2]
[370477843,1752037836014,-460.0,0.00019178,2]
[370477844,1752037836023,-460.0,0.00019178,2]
[370477845,1752037836033,-460.0,0.00019178,2]
[370477846,1752037836042,-211.6603477,0.00019178,2]
[370477847,1752037836052,-757.63,0.00019178,2]
[370477848,1752037836061,-460.0,0.00019178,2]
[370477849,1752037836071,-460.0,0.00019178,2]
[370477850,1752037836085,-463.37460702,0.00019178,2]
[370477851,1752037836095,-460.0,0.00019178,2]
[370477852,1752037836104,-468.72775545,0.00019178,2]
[370477853,1752037836114,-463.02156575,0.00019178,2]
[370477854,1752037836123,-460.0,0.00019178,2]
[370477855,1752037836133,-460.0,0.00019178,2]
[370477856,1752037836142,-230.30923778,0.00019178,2]
[370477877,1752037838560,-501.51349977,0.00019173,2]
[370477879,1752037838571,-229.69076222,0.00019178,2]
[370477881,1752037838580,-460.0,0.00019178,2]
[370477882,1752037838589,-1394.08,0.00019178,2]
[370477883,1752037838599,-455.5963412,0.00019178,2]
[370477884,1752037838611,-573.3936588,0.00019178,2]
[370477885,1752037838620,-460.0,0.00019178,2]
[370477887,1752037838630,-460.0,0.00019178,2]
[370477888,1752037838639,-460.0,0.00019178,2]
[370477890,1752037838649,-461.72948402,0.00019178,2]
[370477891,1752037838658,-460.0,0.00019178,2]
[370477892,1752037838672,-460.0,0.00019178,2]
[370477893,1752037838683,-500.0,0.00019178,2]
[370477894,1752037838693,-500.0,0.00019178,2]
[370477895,1752037838705,-500.0,0.00019178,2]
[370477896,1752037838715,-460.0,0.00019178,2]
[370477897,1752037838725,-500.0,0.00019178,2]
[370477898,1752037838735,-500.0,0.00019178,2]
[370477899,1752037838745,-500.0,0.00019178,2]
[370477900,1752037838756,-460.0,0.00019178,2]
[370477901,1752037838766,-185.47,0.00019178,2]
[370477902,1752037838775,-460.0,0.00019178,2]
[370477903,1752037838785,-460.0,0.00019178,2]
[370477904,1752037838795,-460.0,0.00019178,2]
[370477905,1752037838805,-460.0,0.00019178,2]
[370477906,1752037838815,-460.0,0.00019178,2]
[370477907,1752037838825,-460.0,0.00019178,2]
[370477908,1752037838834,-372.31143328,0.00019178,2]
[370477909,1752037838844,-460.0,0.00019178,2]
[370477910,1752037838854,-460.0,0.00019178,2]
[370477911,1752037838863,-460.0,0.00019178,2]
[370477912,1752037838873,-461.97369791,0.00019178,2]
[370477913,1752037838884,-460.0,0.00019178,2]
[370477914,1752037838894,-543.67,0.00019178,2]
[370477915,1752037838904,-359.65,0.00019178,2]
[370477916,1752037838913,-460.0,0.00019178,2]
[370477917,1752037838923,-642.16,0.00019178,2]
[370477918,1752037838932,-460.0,0.00019178,2]
[370477919,1752037838942,-460.0,0.00019178,2]
[370477920,1752037838950,-460.0,0.00019178,2]
[370477921,1752037838960,-461.65158467,0.00019178,2]
[370477922,1752037838970,-460.0,0.00019178,2]
[370477923,1752037838980,-460.0,0.00019178,2]
[370477924,1752037838990,-460.87345668,0.00019178,2]
[370477925,1752037838999,-536.9,0.00019178,2]
[370477926,1752037839009,-460.0,0.00019178,2]
[370477927,1752037839019,-891.82,0.00019178,2]
[370477928,1752037839029,-460.0,0.00019178,2]
[370477929,1752037839038,-499.94,0.00019178,2]
[370477930,1752037839047,-460.0,0.00019178,2]
[370477931,1752037839057,-677.64,0.00019178,2]
[370477932,1752037839067,-460.0,0.00019178,2]
[370477933,1752037839080,-460.0,0.00019178,2]
[370477934,1752037839090,-460.0,0.00019178,2]
[370477935,1752037839099,-460.0,0.00019178,2]
[370477936,1752037839109,-460.0,0.00019178,2]
[370477937,1752037839119,-460.0,0.00019178,2]
[370477938,1752037839128,-465.16537603,0.00019178,2]
[370477939,1752037839138,-460.0,0.00019178,2]
[370477940,1752037839147,-397.52988345,0.00019178,2]
[370477941,1752037839157,-460.0,0.00019178,2]
[370477942,1752037839166,-460.0,0.00019178,2]
[370477943,1752037839176,-460.0,0.00019178,2]
[370477944,1752037839186,-460.0,0.00019178,2]
[370477945,1752037839196,-461.35696453,0.00019178,2]
[370477946,1752037839206,-460.0,0.00019178,2]
[370477947,1752037839216,-158.13433508,0.00019178,2]
[370477948,1752037839226,-460.0,0.00019178,2]
[370477949,1752037839236,-460.0,0.00019178,2]
[370477950,1752037839246,-441.49606595,0.00019178,2]
[370477951,1752037839255,-460.0,0.00019178,2]
[370477952,1752037839265,-460.0,0.00019178,2]
[370477953,1752037839274,-460.0,0.00019178,2]
[370477954,1752037839284,-460.0,0.00019178,2]
[370477955,1752037839292,-461.85712454,0.00019178,2]
[370477956,1752037839301,-460.0,0.00019178,2]
[370477957,1752037839311,-256.48562522,0.00019178,2]
[370477958,1752037839320,-460.0,0.00019178,2]
[370477959,1752037839329,-460.0,0.00019178,2]
[370477960,1752037839339,-461.28666505,0.00019178,2]
[370477961,1752037839350,-360.0,0.00019178,2]
[370477962,1752037839360,-460.0,0.00019178,2]
[370477963,1752037839370,-461.17450656,0.00019178,2]
[370477964,1752037839379,-460.0,0.00019178,2]
[370477965,1752037839389,-461.16091092,0.00019178,2]
[370477966,1752037839399,-460.0,0.00019178,2]
[370477967,1752037839409,-460.0,0.00019178,2]
[370477968,1752037839419,-460.0,0.00019178,2]
[370477969,1752037839430,-460.0,0.00019178,2]
[370477970,1752037839439,-468.46136586,0.00019178,2]
[370477971,1752037839449,-460.0,0.00019178,2]
[370477972,1752037839458,-460.0,0.00019178,2]
[370477973,1752037839467,-460.0,0.00019178,2]
[370477974,1752037839477,-460.0,0.00019178,2]
[370477975,1752037839487,-460.0,0.00019178,2]
[370477976,1752037839496,-372.60165243,0.00019178,2]
[370477977,1752037839507,-487.91,0.00019178,2]
[370477978,1752037839517,-460.0,0.00019178,2]
[370477979,1752037839527,-503.32441199,0.00019178,2]
[370477980,1752037839536,-460.0,0.00019178,2]
[370477981,1752037839546,-460.0,0.00019178,2]
[370477982,1752037839555,-460.0,0.00019178,2]
[370477983,1752037839565,-460.0,0.00019178,2]
[370477984,1752037839575,-465.19165779,0.00019178,2]
[370477985,1752037839585,-460.0,0.00019178,2]
[370477986,1752037839595,-565.96475313,0.00019178,2]
[370477987,1752037839604,-460.0,0.00019178,2]
[370477988,1752037839614,-460.0,0.00019178,2]
[370477989,1752037839624,-460.0,0.00019178,2]
[370477990,1752037839633,-539.15,0.00019178,2]
[370477991,1752037839643,-460.0,0.00019178,2]
[370477992,1752037839652,-500.0,0.00019178,2]
[370477993,1752037839662,-666.0,0.00019178,2]
[370477994,1752037839671,-232.810171,0.00019178,2]
[370477995,1752037839681,-472.84633805,0.00019191,2]
[370477996,1752037839691,-1889.49396686,0.00019191,2]
[370477997,1752037839701,-278.235655,0.00019191,2]
[370477998,1752037839711,-1111.82967736,0.00019191,2]
[370477999,1752037839720,-30965.96267705,0.00019329,2]
[370478000,1752037839731,-500.0,0.00019451,2]
[370478001,1752037839740,-500.0,0.00019451,2]
[370478002,1752037839749,-500.0,0.00019451,2]
[370478003,1752037839758,-460.0,0.00019452,2]
[370478004,1752037839767,-460.0,0.00019452,2]
[370478005,1752037839777,-525.40094639,0.00019452,2]
[370478006,1752037839786,-460.0,0.00019452,2]
[370478007,1752037839796,-460.0,0.00019452,2]
[370478008,1752037839805,-523.18617986,0.00019452,2]
[370478009,1752037839814,-460.0,0.00019452,2]
[370478010,1752037839824,-460.0,0.00019452,2]
[370478011,1752037839833,-502.87500396,0.00019452,2]
[370478012,1752037839843,-460.0,0.00019452,2]
[370478013,1752037839852,-460.0,0.00019452,2]
[370478014,1752037839861,-460.0,0.00019452,2]
[370478015,1752037839871,-460.0,0.00019452,2]
[370478016,1752037839881,-460.0,0.00019452,2]
[370478017,1752037839891,-460.0,0.00019452,2]
[370478018,1752037839900,-460.0,0.00019452,2]
[370478019,1752037839909,-460.0,0.00019452,2]
[370478020,1752037839919,-460.0,0.00019452,2]
[370478021,1752037839929,-460.0,0.00019452,2]
[370478022,1752037839938,-374.05712751,0.00019452,2]
[370478023,1752037839948,-460.0,0.00019452,2]
[370478024,1752037839958,-460.0,0.00019452,2]
[370478025,1752037839967,-460.0,0.00019452,2]
[370478026,1752037839977,-482.08,0.00019452,2]
[370478027,1752037839986,-161.4,0.00019452,2]
[370478028,1752037839996,-460.0,0.00019452,2]
[370478029,1752037840006,-460.0,0.00019452,2]
[370478030,1752037840015,-460.0,0.00019452,2]
[370478031,1752037840025,-460.0,0.00019452,2]
[370478032,1752037840034,-460.0,0.00019452,2]
[370478033,1752037840044,-460.0,0.00019452,2]
[370478034,1752037840053,-460.0,0.00019452,2]
[370478035,1752037840063,-460.0,0.00019452,2]
[370478036,1752037840077,-249.33,0.00019452,2]
[370478037,1752037840086,-460.0,0.00019452,2]
[370478038,1752037840096,-542.45053929,0.00019452,2]
[370478039,1752037840105,-460.0,0.00019452,2]
[370478040,1752037840117,-460.0,0.00019452,2]
[370478044,1752037840252,-460.0,0.00019452,2]
[370478046,1752037840269,-517.75,0.00019452,2]
[370478047,1752037840279,-460.0,0.00019452,2]
[370478048,1752037840289,-460.0,0.00019452,2]
[370478049,1752037840299,-462.40934708,0.00019452,2]
[370478050,1752037840308,-460.0,0.00019452,2]
[370478051,1752037840317,-460.0,0.00019452,2]
[370478052,1752037840327,-460.0,0.00019452,2]
[370478053,1752037840337,-460.0,0.00019452,2]
[370478054,1752037840346,-608.11151287,0.00019452,2]
[370478055,1752037840356,-442.75767739,0.00019452,2]
[370478056,1752037840366,-460.0,0.00019452,2]
[370478057,1752037840375,-460.0,0.00019452,2]
[370478058,1752037840385,-463.29916755,0.00019452,2]
[370478059,1752037840394,-460.0,0.00019452,2]
[370478060,1752037840404,-399.35191255,0.00019452,2]
[370478061,1752037840413,-460.0,0.00019452,2]
[370478062,1752037840423,-460.0,0.00019452,2]
[370478063,1752037840433,-460.0,0.00019452,2]
[370478064,1752037840442,-464.75586545,0.00019452,2]
[370478065,1752037840452,-460.0,0.00019452,2]
[370478066,1752037840461,-460.0,0.00019452,2]
[370478067,1752037840471,-460.0,0.00019452,2]
[370478068,1752037840480,-465.47289305,0.00019452,2]
[370478069,1752037840490,-460.0,0.00019452,2]
[370478070,1752037840499,-460.0,0.00019452,2]
[370478071,1752037840509,-428.87,0.00019452,2]
[370478072,1752037840518,-460.0,0.00019452,2]
[370478073,1752037840528,-499.14138798,0.00019452,2]
[370478074,1752037840537,-460.0,0.00019452,2]
[370478075,1752037840546,-177.76912002,0.00019452,2]
[370478076,1752037840556,-460.0,0.00019452,2]
[370478077,1752037840565,-373.6,0.00019452,2]
[370478078,1752037840575,-500.0,0.00019452,2]
[370478079,1752037840584,-460.0,0.00019452,2]
[370478080,1752037840594,-460.0,0.00019452,2]
[370478081,1752037840604,-1006.45798807,0.00019452,2]
[370478082,1752037840613,-462.75945149,0.00019452,2]
[370478083,1752037840623,-460.0,0.00019452,2]
[370478084,1752037840633,-460.0,0.00019452,2]
[370478085,1752037840643,-460.0,0.00019452,2]
[370478086,1752037840653,-466.63132801,0.00019452,2]
[370478087,1752037840662,-849.74,0.00019452,2]
[370478088,1752037840672,-460.0,0.00019452,2]
[370478089,1752037840683,-554.52508691,0.00019452,2]
[370478090,1752037840692,-1860.34,0.00019452,2]
[370478091,1752037840702,-460.0,0.00019452,2]
[370478092,1752037840712,-1185.37,0.00019452,2]
[370478093,1752037840722,-460.0,0.00019452,2]
[370478094,1752037840732,-460.0,0.00019452,2]
[370478095,1752037840742,-460.0,0.00019452,2]
[370478096,1752037840752,-460.0,0.00019452,2]
[370478097,1752037840761,-460.0,0.00019452,2]
[370478098,1752037840771,-460.0,0.00019452,2]
[370478099,1752037840781,-461.77429171,0.00019452,2]
[370478100,1752037840791,-460.0,0.00019452,2]
[370478101,1752037840800,-466.00231493,0.00019452,2]
[370478102,1752037840810,-460.0,0.00019452,2]
[370478103,1752037840819,-460.0,0.00019452,2]
[370478104,1752037840829,-460.0,0.00019452,2]
[370478105,1752037840839,-460.0,0.00019452,2]
[370478106,1752037840849,-460.0,0.00019452,2]
[370478107,1752037840859,-1265.28,0.00019452,2]
[370478108,1752037840869,-460.0,0.00019452,2]
[370478109,1752037840879,-464.10169179,0.00019452,2]
[370478110,1752037840889,-771.31,0.00019452,2]
[370478111,1752037840898,-486.82,0.00019452,2]
[370478112,1752037840908,-460.0,0.00019452,2]
[370478113,1752037840917,-460.0,0.00019452,2]
[370478115,1752037840927,-460.0,0.00019452,2]
[370478117,1752037840936,-757.63,0.00019452,2]
[370478119,1752037840946,-560.79743469,0.00019452,2]
[370478121,1752037840956,-460.0,0.00019452,2]
[370478123,1752037840965,-460.0,0.00019452,2]
[370478125,1752037840975,-460.0,0.00019452,2]
[370478127,1752037840986,-1394.08,0.00019452,2]
[370478129,1752037840996,-1028.99,0.00019452,2]
[370478131,1752037841005,-460.0,0.00019452,2]
[370478133,1752037841015,-383.24575433,0.00019452,2]
[370478135,1752037841024,-460.0,0.00019452,2]
[370478137,1752037841034,-460.0,0.00019452,2]
[370478139,1752037841043,-460.0,0.00019452,2]
[370478140,1752037841053,-460.0,0.00019452,2]
[370478142,1752037841063,-460.0,0.00019452,2]
[370478144,1752037841074,-460.0,0.00019452,2]
[370478146,1752037841085,-463.23188369,0.00019452,2]
[370478148,1752037841094,-460.0,0.00019452,2]
[370478150,1752037841104,-543.67,0.00019452,2]
[370478152,1752037841114,-642.16,0.00019452,2]
[370478154,1752037841123,-460.0,0.00019452,2]
[370478155,1752037841133,-474.46,0.00019452,2]
[370478157,1752037841143,-460.0,0.00019452,2]
[370478158,1752037841153,-506.41477014,0.00019452,2]
[370478159,1752037841163,-891.82,0.00019452,2]
[370478161,1752037841172,-460.0,0.00019452,2]
[370478163,1752037841181,-499.94,0.00019452,2]
[370478165,1752037841191,-460.0,0.00019452,2]
[370478167,1752037841201,-677.64,0.00019452,2]
[370478169,1752037841210,-460.0,0.00019452,2]
[370478171,1752037841220,-460.0,0.00019452,2]
[370478173,1752037841229,-460.0,0.00019452,2]
[370478175,1752037841238,-460.0,0.00019452,2]
[370478177,1752037841248,-460.0,0.00019452,2]
[370478179,1752037841258,-228.63945414,0.00019452,2]
[370478181,1752037841267,-460.0,0.00019452,2]
[370478183,1752037841276,-461.61156139,0.00019452,2]
[370478185,1752037841286,-460.0,0.00019452,2]
[370478187,1752037841295,-460.0,0.00019452,2]
[370478189,1752037841305,-460.0,0.00019452,2]
[370478191,1752037841314,-460.0,0.00019452,2]
[370478193,1752037841323,-460.0,0.00019452,2]
[370478195,1752037841333,-370.91613087,0.00019452,2]
[370478197,1752037841342,-460.0,0.00019452,2]
[370478199,1752037841351,-470.68905098,0.00019452,2]
[370478201,1752037841361,-590.10378647,0.00019452,2]
[370478203,1752037841370,-462.856168,0.00019452,2]
[370478205,1752037841380,-487.91,0.00019452,2]
[370478207,1752037841389,-460.0,0.00019452,2]
[370478209,1752037841399,-460.0,0.00019452,2]
[370478211,1752037841408,-460.0,0.00019452,2]
[370478213,1752037841421,-460.0,0.00019452,2]
[370478215,1752037841431,-460.0,0.00019452,2]
[370478217,1752037841440,-460.0,0.00019452,2]
[370478219,1752037841449,-460.0,0.00019452,2]
[370478221,1752037841459,-445.96846333,0.00019452,2]
[370478223,1752037841469,-539.15,0.00019452,2]
[370478225,1752037841478,-462.70862631,0.00019452,2]
[370478227,1752037841487,-1209.67378593,0.00019532,2]
[370478229,1752037841497,-500.0,0.00019609,2]
[370478231,1752037841506,-501.45291797,0.0001961,2]
[370478233,1752037841515,-22312.95025081,0.00019626,2]
[370478235,1752037841524,-505.96527619,0.00019721,2]
[370478237,1752037841535,-500.0,0.00019721,2]
[370478239,1752037841544,-315.50837465,0.00019721,2]
[370478241,1752037841554,-504.72484411,0.00019721,2]
[370478243,1752037841564,-500.0,0.00019721,2]
[370478245,1752037841574,-501.49912669,0.00019721,2]
[370478247,1752037841583,-500.0,0.00019721,2]
[370478249,1752037841593,-500.0,0.00019725,2]
[370478251,1752037841603,-460.0,0.00019726,2]
[370478253,1752037841612,-460.0,0.00019726,2]
[370478255,1752037841621,-460.0,0.00019726,2]
[370478257,1752037841631,-488.31851449,0.00019726,2]
[370478259,1752037841641,-460.0,0.00019726,2]
[370478261,1752037841650,-460.0,0.00019726,2]
[370478263,1752037841659,-158.34195874,0.00019726,2]
[370478265,1752037841669,-460.0,0.00019726,2]
[370478267,1752037841678,-460.0,0.00019726,2]
[370478269,1752037841688,-460.0,0.00019726,2]
[370478271,1752037841698,-460.0,0.00019726,2]
[370478274,1752037841708,-460.0,0.00019726,2]
[370478276,1752037841717,-460.0,0.00019726,2]
[370478278,1752037841726,-258.31,0.00019726,2]
[370478280,1752037841736,-460.0,0.00019726,2]
[370478282,1752037841745,-460.0,0.00019726,2]
[370478284,1752037841755,-460.0,0.00019726,2]
[370478286,1752037841764,-460.0,0.00019726,2]
[370478288,1752037841774,-460.0,0.00019726,2]
[370478290,1752037841783,-471.17356046,0.00019726,2]
[370478292,1752037841792,-460.0,0.00019726,2]
[370478294,1752037841802,-460.0,0.00019726,2]
[370478296,1752037841811,-460.0,0.00019726,2]
[370478298,1752037841821,-460.0,0.00019726,2]
[370478300,1752037841831,-460.0,0.00019726,2]
[370478302,1752037841840,-460.0,0.00019726,2]
[370478304,1752037841849,-849.74,0.00019726,2]
[370478306,1752037841859,-460.0,0.00019726,2]
[370478308,1752037841869,-1860.34,0.00019726,2]
[370478310,1752037841878,-1185.37,0.00019726,2]
[370478312,1752037841888,-443.60741995,0.00019726,2]
[370478314,1752037841897,-583.42659045,0.00019726,2]
[370478316,1752037841907,-460.0,0.00019726,2]
[370478318,1752037841916,-460.0,0.00019726,2]
[370478320,1752037841925,-1265.28,0.00019726,2]
[370478322,1752037841935,-771.31,0.00019726,2]
[370478324,1752037841945,-486.82,0.00019726,2]
[370478326,1752037841955,-460.0,0.00019726,2]
[370478328,1752037841964,-460.0,0.00019726,2]
[370478330,1752037841974,-460.0,0.00019726,2]
[370478332,1752037841983,-757.63,0.00019726,2]
[370478334,1752037841993,-460.0,0.00019726,2]
[370478336,1752037842003,-1394.08,0.00019726,2]
[370478338,1752037842013,-1028.99,0.00019726,2]
[370478340,1752037842022,-460.0,0.00019726,2]
[370478342,1752037842032,-460.0,0.00019726,2]
[370478344,1752037842042,-460.0,0.00019726,2]
[370478346,1752037842052,-263.19694588,0.00019726,2]
[370478348,1752037842061,-543.67,0.00019726,2]
[370478350,1752037842079,-642.16,0.00019726,2]
[370478352,1752037842089,-464.3245912,0.00019726,2]
[370478354,1752037842103,-183.97656284,0.00019726,2]
[370478356,1752037842112,-891.82,0.00019726,2]
[370478358,1752037842122,-499.94,0.00019726,2]
[370478360,1752037842131,-677.64,0.00019726,2]
[370478362,1752037842149,-408.17,0.00019726,2]
[370478364,1752037842159,-460.0,0.00019726,2]
[370478366,1752037842169,-516.34907766,0.00019726,2]
[370478368,1752037842179,-460.0,0.00019726,2]
[370478370,1752037842189,-460.0,0.00019726,2]
[370478372,1752037842198,-460.0,0.00019726,2]
[370478374,1752037842208,-515.27,0.00019726,2]
[370478376,1752037842218,-462.3557801,0.00019726,2]
[370478378,1752037842227,-460.0,0.00019726,2]
[370478380,1752037842237,-460.0,0.00019726,2]
[370478383,1752037842247,-487.91,0.00019726,2]
[370478384,1752037842257,-460.0,0.00019726,2]
[370478386,1752037842266,-460.0,0.00019726,2]
[370478387,1752037842275,-460.0,0.00019726,2]
[370478388,1752037842285,-539.15,0.00019726,2]
[370478389,1752037842294,-522.68380089,0.00019784,2]
[370478390,1752037842304,-420.0,0.00019806,2]
[370478391,1752037842313,-500.0,0.00019835,2]
[370478392,1752037842323,-3314.80714148,0.000199,2]
[370478393,1752037842332,-151.0,0.000199,2]
[370478394,1752037842342,-222.96230373,0.00019949,2]
[370478395,1752037842351,-151.0,0.00019973,2]
[370478396,1752037842361,-151.0,0.00019973,2]
[370478397,1752037842370,-151.0,0.00019973,2]
[370478398,1752037842380,-202.03352032,0.00019973,2]
[370478399,1752037842390,-151.0,0.00019973,2]
[370478400,1752037842399,-151.22157252,0.00019973,2]
[370478401,1752037842409,-151.00488398,0.00019973,2]
[370478402,1752037842418,-151.0,0.00019973,2]
[370478403,1752037842427,-151.0,0.00019973,2]
[370478404,1752037842437,-151.0,0.00019973,2]
[370478405,1752037842446,-500.0,0.00019999,2]
[370478406,1752037842455,-586.56264417,0.0002,2]
[370478407,1752037842464,-186.34694371,0.0002,2]
[370478408,1752037842474,-460.0,0.0002,2]
[370478409,1752037842484,-460.0,0.0002,2]
[370478410,1752037842493,-392.67,0.0002,2]
[370478411,1752037842504,-460.0,0.0002,2]
[370478412,1752037842514,-460.0,0.0002,2]
[370478413,1752037842524,-460.0,0.0002,2]
[370478414,1752037842534,-460.0,0.0002,2]
[370478415,1752037842545,-460.0,0.0002,2]
[370478416,1752037842556,-460.0,0.0002,2]
[370478417,1752037842566,-460.0,0.0002,2]
[370478418,1752037842577,-460.0,0.0002,2]
[370478419,1752037842587,-460.0,0.0002,2]
[370478420,1752037842597,-460.0,0.0002,2]
[370478421,1752037842607,-460.0,0.0002,2]
[370478422,1752037842617,-849.74,0.0002,2]
[370478423,1752037842627,-460.0,0.0002,2]
[370478424,1752037842637,-1860.34,0.0002,2]
[370478425,1752037842648,-1185.37,0.0002,2]
[370478426,1752037842657,-460.0,0.0002,2]
[370478427,1752037842666,-1265.28,0.0002,2]
[370478428,1752037842718,-771.31,0.0002,2]
[370478429,1752037842729,-486.82,0.0002,2]
[370478430,1752037842739,-460.0,0.0002,2]
[370478431,1752037842749,-388.22416297,0.0002,2]
[370478432,1752037842758,-460.0,0.0002,2]
[370478433,1752037842768,-757.63,0.0002,2]
[370478434,1752037842779,-460.0,0.0002,2]
[370478435,1752037842789,-1394.08,0.0002,2]
[370478436,1752037842799,-1028.99,0.0002,2]
[370478437,1752037842808,-460.0,0.0002,2]
[370478438,1752037842818,-460.0,0.0002,2]
[370478439,1752037842828,-543.67,0.0002,2]
[370478440,1752037842838,-642.16,0.0002,2]
[370478441,1752037842849,-891.82,0.0002,2]
[370478442,1752037842860,-499.94,0.0002,2]
[370478443,1752037842871,-677.64,0.0002,2]
[370478444,1752037842882,-460.0,0.0002,2]
[370478445,1752037842895,-460.0,0.0002,2]
[370478446,1752037842906,-487.91,0.0002,2]
[370478447,1752037842918,-460.0,0.0002,2]
[370478448,1752037842930,-460.0,0.0002,2]
[370478449,1752037842941,-460.0,0.0002,2]
[370478450,1752037842952,-539.15,0.0002,2]
[370478451,1752037842963,-151.0,0.0002,2]
[370478452,1752037842973,-151.0,0.0002,2]
[370478453,1752037842984,-151.0,0.0002,2]
[370478454,1752037842994,-167.95191414,0.0002,2]
[370478456,1752037843005,-151.0,0.00020028,2]
[370478459,1752037843016,-151.0,0.00020028,2]
[370478461,1752037843026,-198.0,0.00020055,2]
[370478463,1752037843036,-198.0,0.00020055,2]
[370478465,1752037843046,-214.14293035,0.00020074,2]
[370478467,1752037843055,-12589.12013084,0.00020074,2]
[370478468,1752037843064,-230.53906051,0.00020074,2]
[370478469,1752037843079,-160.0,0.00020074,2]
[370478470,1752037843088,-848.55005627,0.00020074,2]
[370478471,1752037843097,-160.0,0.00020074,2]
[370478473,1752037843107,-215.27775528,0.00020074,2]
[370478475,1752037843116,-160.0,0.00020074,2]
[370478477,1752037843127,-837.99933892,0.00020074,2]
[370478478,1752037843136,-160.0,0.00020074,2]
[370478480,1752037843146,-160.0,0.00020074,2]
[370478482,1752037843158,-160.0,0.00020074,2]
[370478484,1752037843167,-151.0,0.000201,3]
[370478486,1752037843177,-3314.80714134,0.00020107,2]
[370478488,1752037843187,-402.001499,0.00020187,2]
[370478491,1752037843196,-163.731182,0.00020209,2]
[370478494,1752037843205,-460.0,0.00020273,2]
[370478497,1752037843215,-460.0,0.00020273,2]
[370478500,1752037843224,-425.47902398,0.00020273,2]
[370478503,1752037843233,-460.0,0.00020273,2]
[370478504,1752037843242,-460.0,0.00020273,2]
[370478506,1752037843251,-460.0,0.00020273,2]
[370478507,1752037843260,-460.0,0.00020273,2]
[370478508,1752037843270,-460.0,0.00020273,2]
[370478509,1752037843279,-460.0,0.00020273,2]
[370478510,1752037843288,-460.0,0.00020273,2]
[370478511,1752037843298,-460.0,0.00020273,2]
[370478512,1752037843307,-460.0,0.00020273,2]
[370478513,1752037843316,-849.74,0.00020273,2]
[370478514,1752037843325,-460.0,0.00020273,2]
[370478515,1752037843334,-1860.34,0.00020273,2]
[370478516,1752037843344,-1185.37,0.00020273,2]
[370478517,1752037843353,-460.0,0.00020273,2]
[370478518,1752037843362,-1265.28,0.00020273,2]
[370478519,1752037843371,-771.31,0.00020273,2]
[370478520,1752037843381,-486.82,0.00020273,2]
[370478521,1752037843390,-460.0,0.00020273,2]
[370478522,1752037843399,-460.0,0.00020273,2]
[370478523,1752037843409,-757.63,0.00020273,2]
[370478524,1752037843417,-460.0,0.00020273,2]